[Event "Titled Tuesday Blitz May 25 2021"]
[White "Makhnev, Denis"]
[Black "Acor, Corey"]
[WhiteFideId "13707647"]
[BlackFideId "2024861"]
[WhiteElo "2549"]
[BlackElo "2799"]
[Result "1/2-1/2"]
[Round "06"]
[TimeControl "180+1"]
[Date "2021.05.25"]
[WhiteClock "0:00:15"]
[BlackClock "0:00:07"]

1. Nf3 {[%clk 0:03:00]}  d6 {[%clk 0:02:57]} 2. g3 {[%clk 0:02:59]}  g6 {[%clk 0:02:57]} 3. Bg2 {[%clk 0:03:00]}  Bg7 {[%clk 0:02:57]} 4. O-O {[%clk 0:03:00]}  Nf6 {[%clk 0:02:55]} 5. c4 {[%clk 0:03:00]}  O-O {[%clk 0:02:53]} 6. Nc3 {[%clk 0:03:00]}  Nc6 {[%clk 0:02:53]} 7. Rb1 {[%clk 0:02:59]}  e5 {[%clk 0:02:50]} 8. b4 {[%clk 0:02:59]}  a6 {[%clk 0:02:44]} 9. d3 {[%clk 0:02:57]}  Be6 {[%clk 0:02:37]} 10. a4 {[%clk 0:02:55]}  h6 {[%clk 0:02:36]} 11. b5 {[%clk 0:02:53]}  axb5 {[%clk 0:02:35]} 12. axb5 {[%clk 0:02:54]}  Na5 {[%clk 0:02:35]} 13. Nd2 {[%clk 0:02:47]}  Qd7 {[%clk 0:02:34]} 14. Nde4 {[%clk 0:02:44]}  Nxe4 {[%clk 0:02:32]} 15. Nxe4 {[%clk 0:02:43]}  f5 {[%clk 0:02:29]} 16. Nc3 {[%clk 0:02:43]}  c6 {[%clk 0:02:26]} 17. Bd2 {[%clk 0:01:59]}  e4 {[%clk 0:02:07]} 18. Na4 {[%clk 0:01:47]}  Qc7 {[%clk 0:02:07]} 19. Qc2 {[%clk 0:01:37]}  cxb5 {[%clk 0:01:54]} 20. Rxb5 {[%clk 0:01:35]}  Nc6 {[%clk 0:01:55]} 21. Nb6 {[%clk 0:01:24]}  Ra3 {[%clk 0:01:40]} 22. Nd5 {[%clk 0:01:19]}  Qf7 {[%clk 0:01:35]} 23. Be3 {[%clk 0:01:11]}  Bxd5 {[%clk 0:01:30]} 24. cxd5 {[%clk 0:01:09]}  exd3 {[%clk 0:01:30]} 25. exd3 {[%clk 0:01:07]}  Nd4 {[%clk 0:01:23]} 26. Bxd4 {[%clk 0:01:06]}  Bxd4 {[%clk 0:01:24]} 27. Qc4 {[%clk 0:00:58]}  Qg7 {[%clk 0:01:12]} 28. Qb4 {[%clk 0:00:53]}  Rxd3 {[%clk 0:01:07]} 29. Qxd6 {[%clk 0:00:52]}  b6 {[%clk 0:01:02]} 30. Qe6+ {[%clk 0:00:50]}  Kh7 {[%clk 0:00:50]} 31. d6 {[%clk 0:00:44]}  Bc5 {[%clk 0:00:48]} 32. d7 {[%clk 0:00:42]}  Rxd7 {[%clk 0:00:45]} 33. Rb2 {[%clk 0:00:38]}  Qxb2 {[%clk 0:00:37]} 34. Qxd7+ {[%clk 0:00:38]}  Qg7 {[%clk 0:00:38]} 35. Qc6 {[%clk 0:00:34]}  Rd8 {[%clk 0:00:34]} 36. h4 {[%clk 0:00:30]}  Qd7 {[%clk 0:00:32]} 37. Qxd7+ {[%clk 0:00:21]}  Rxd7 {[%clk 0:00:32]} 38. h5 {[%clk 0:00:19]}  Rd2 {[%clk 0:00:26]} 39. hxg6+ {[%clk 0:00:18]}  Kxg6 {[%clk 0:00:27]} 40. Bc6 {[%clk 0:00:17]}  Bd4 {[%clk 0:00:24]} 41. Kg2 {[%clk 0:00:17]}  Rc2 {[%clk 0:00:23]} 42. Bd7 {[%clk 0:00:17]}  Rb2 {[%clk 0:00:21]} 43. g4 {[%clk 0:00:15]}  fxg4 {[%clk 0:00:15]} 44. Bxg4 {[%clk 0:00:16]}  b5 {[%clk 0:00:14]} 45. Kg3 {[%clk 0:00:16]}  Be5+ {[%clk 0:00:12]} 46. f4 {[%clk 0:00:16]}  Rb3+ {[%clk 0:00:11]} 47. Rf3 {[%clk 0:00:15]}  Rxf3+ {[%clk 0:00:09]} 48. Bxf3 {[%clk 0:00:14]}  Bd6 {[%clk 0:00:10]} 49. Bd5 {[%clk 0:00:14]}  Kf6 {[%clk 0:00:08]} 50. Kg4 {[%clk 0:00:13]}  b4 {[%clk 0:00:09]} 51. Bc4 {[%clk 0:00:14]}  Ke7 {[%clk 0:00:09]} 52. Bb3 {[%clk 0:00:14]}  Kd7 {[%clk 0:00:08]} 53. f5 {[%clk 0:00:14]}  Ke7 {[%clk 0:00:07]} 54. Kh5 {[%clk 0:00:13]}  Kf6 {[%clk 0:00:04]} 55. Kxh6 {[%clk 0:00:13]}  Kxf5 {[%clk 0:00:04]} 56. Kh5 {[%clk 0:00:14]}  Ke5 {[%clk 0:00:04]} 57. Ba2 {[%clk 0:00:14]}  Kd4 {[%clk 0:00:05]} 58. Bb3 {[%clk 0:00:15]}  Kc3 {[%clk 0:00:06]} 59. Be6 {[%clk 0:00:15]}  b3 {[%clk 0:00:07]} 60. Bxb3 {[%clk 0:00:15]} 1/2-1/2


[Site "https://www.chess.com"]

[Event "Titled Tuesday Blitz May 25 2021"]
[White "Maly, Alexey"]
[Black "Isajevsky, Anton"]
[WhiteFideId "14103184"]
[BlackFideId "4142500"]
[WhiteElo "2314"]
[BlackElo "2510"]
[Result "1/2-1/2"]
[Round "06"]
[TimeControl "180+1"]
[Date "2021.05.25"]
[WhiteClock "0:00:44"]
[BlackClock "0:00:14"]

1. d4 {[%clk 0:03:00]}  d5 {[%clk 0:02:59]} 2. c4 {[%clk 0:03:01]}  e6 {[%clk 0:02:59]} 3. Nf3 {[%clk 0:03:01]}  Nf6 {[%clk 0:02:59]} 4. e3 {[%clk 0:03:01]}  Be7 {[%clk 0:02:56]} 5. Nbd2 {[%clk 0:03:01]}  O-O {[%clk 0:02:56]} 6. Bd3 {[%clk 0:03:01]}  b6 {[%clk 0:02:54]} 7. O-O {[%clk 0:03:01]}  Bb7 {[%clk 0:02:54]} 8. Qe2 {[%clk 0:03:00]}  a6 {[%clk 0:02:49]} 9. e4 {[%clk 0:03:00]}  dxe4 {[%clk 0:02:49]} 10. Nxe4 {[%clk 0:03:01]}  Nbd7 {[%clk 0:02:48]} 11. Rd1 {[%clk 0:02:59]}  Qc8 {[%clk 0:02:29]} 12. b3 {[%clk 0:02:58]}  c5 {[%clk 0:02:21]} 13. Bb2 {[%clk 0:02:57]}  cxd4 {[%clk 0:02:21]} 14. Nxd4 {[%clk 0:02:57]}  Re8 {[%clk 0:02:16]} 15. Nxf6+ {[%clk 0:02:51]}  Bxf6 {[%clk 0:02:09]} 16. Be4 {[%clk 0:02:47]}  Nc5 {[%clk 0:02:07]} 17. Bxb7 {[%clk 0:02:45]}  Qxb7 {[%clk 0:02:08]} 18. Nf3 {[%clk 0:02:36]}  Bxb2 {[%clk 0:01:59]} 19. Qxb2 {[%clk 0:02:36]}  Rad8 {[%clk 0:02:00]} 20. Qc2 {[%clk 0:02:35]}  f6 {[%clk 0:01:48]} 21. Rxd8 {[%clk 0:02:32]}  Rxd8 {[%clk 0:01:48]} 22. Rd1 {[%clk 0:02:33]}  Rd7 {[%clk 0:01:41]} 23. h3 {[%clk 0:02:29]}  e5 {[%clk 0:01:36]} 24. Rxd7 {[%clk 0:02:23]}  Qxd7 {[%clk 0:01:36]} 25. Qd2 {[%clk 0:02:20]}  Qxd2 {[%clk 0:01:25]} 26. Nxd2 {[%clk 0:02:21]}  Kf7 {[%clk 0:01:23]} 27. Kf1 {[%clk 0:02:21]}  Nd3 {[%clk 0:01:20]} 28. a3 {[%clk 0:02:13]}  Ke6 {[%clk 0:01:18]} 29. Ke2 {[%clk 0:02:11]}  Nc5 {[%clk 0:01:16]} 30. b4 {[%clk 0:02:08]}  Nd7 {[%clk 0:01:10]} 31. g4 {[%clk 0:02:07]}  g6 {[%clk 0:01:09]} 32. Kd3 {[%clk 0:01:59]}  f5 {[%clk 0:01:09]} 33. f3 {[%clk 0:01:55]}  h5 {[%clk 0:00:35]} 34. gxh5 {[%clk 0:01:43]}  gxh5 {[%clk 0:00:35]} 35. Ke3 {[%clk 0:01:42]}  Nf8 {[%clk 0:00:32]} 36. Nb3 {[%clk 0:01:25]}  Kd6 {[%clk 0:00:20]} 37. c5+ {[%clk 0:01:21]}  Kc6 {[%clk 0:00:14]} 38. f4 {[%clk 0:01:15]}  exf4+ {[%clk 0:00:12]} 39. Kxf4 {[%clk 0:01:15]}  a5 {[%clk 0:00:10]} 40. Kxf5 {[%clk 0:01:10]}  axb4 {[%clk 0:00:11]} 41. axb4 {[%clk 0:01:11]}  bxc5 {[%clk 0:00:10]} 42. Nxc5 {[%clk 0:01:04]}  Kd5 {[%clk 0:00:10]} 43. h4 {[%clk 0:00:56]}  Kc4 {[%clk 0:00:09]} 44. Ne6 {[%clk 0:00:48]}  Nxe6 {[%clk 0:00:08]} 45. Kxe6 {[%clk 0:00:47]}  Kxb4 {[%clk 0:00:09]} 46. Kf6 {[%clk 0:00:44]}  Kc5 {[%clk 0:00:10]} 47. Kg5 {[%clk 0:00:44]}  Kd6 {[%clk 0:00:11]} 48. Kxh5 {[%clk 0:00:45]}  Ke7 {[%clk 0:00:12]} 49. Kg6 {[%clk 0:00:45]}  Kf8 {[%clk 0:00:13]} 50. h5 {[%clk 0:00:43]}  Kg8 {[%clk 0:00:13]} 51. h6 {[%clk 0:00:44]}  Kh8 {[%clk 0:00:14]} 52. h7 {[%clk 0:00:44]} 1/2-1/2


[Site "https://www.chess.com"]

[Event "Titled Tuesday Blitz May 25 2021"]
[White "Miszler, Levente"]
[Black "Yang, Kaiqi"]
[WhiteFideId "763276"]
[BlackFideId "8604398"]
[WhiteElo "1967"]
[BlackElo "2373"]
[Result "1-0"]
[Round "06"]
[TimeControl "180+1"]
[Date "2021.05.25"]
[WhiteClock "0:00:09"]
[BlackClock "0:00:01"]

1. Nf3 {[%clk 0:03:00]}  Nf6 {[%clk 0:02:59]} 2. c4 {[%clk 0:03:00]}  c6 {[%clk 0:02:59]} 3. d4 {[%clk 0:02:58]}  d5 {[%clk 0:02:59]} 4. Nc3 {[%clk 0:02:57]}  e6 {[%clk 0:03:00]} 5. g3 {[%clk 0:02:56]}  dxc4 {[%clk 0:02:56]} 6. Bg2 {[%clk 0:02:55]}  Nbd7 {[%clk 0:02:56]} 7. O-O {[%clk 0:02:54]}  Be7 {[%clk 0:02:55]} 8. e4 {[%clk 0:02:54]}  O-O {[%clk 0:02:54]} 9. a4 {[%clk 0:02:51]}  a5 {[%clk 0:02:51]} 10. Qc2 {[%clk 0:02:44]}  Re8 {[%clk 0:02:45]} 11. Rd1 {[%clk 0:02:42]}  Bb4 {[%clk 0:02:29]} 12. Ne5 {[%clk 0:02:39]}  Nxe5 {[%clk 0:02:25]} 13. dxe5 {[%clk 0:02:38]}  Nd7 {[%clk 0:02:25]} 14. Ne2 {[%clk 0:02:28]}  Qe7 {[%clk 0:02:14]} 15. f4 {[%clk 0:02:14]}  b5 {[%clk 0:01:54]} 16. Be3 {[%clk 0:02:09]}  Bb7 {[%clk 0:01:51]} 17. Nd4 {[%clk 0:02:02]}  Bc5 {[%clk 0:01:50]} 18. Kf2 {[%clk 0:01:55]}  Nb6 {[%clk 0:01:42]} 19. axb5 {[%clk 0:01:48]}  cxb5 {[%clk 0:01:37]} 20. Nxb5 {[%clk 0:01:48]}  Bxe3+ {[%clk 0:01:33]} 21. Kxe3 {[%clk 0:01:48]}  Qc5+ {[%clk 0:01:31]} 22. Nd4 {[%clk 0:01:49]}  Red8 {[%clk 0:01:24]} 23. Rac1 {[%clk 0:01:42]}  Rd7 {[%clk 0:01:18]} 24. b3 {[%clk 0:01:32]}  Rad8 {[%clk 0:01:17]} 25. Qc3 {[%clk 0:01:31]}  f6 {[%clk 0:00:33]} 26. bxc4 {[%clk 0:01:18]}  fxe5 {[%clk 0:00:33]} 27. fxe5 {[%clk 0:01:17]}  Qxe5 {[%clk 0:00:32]} 28. Nb5 {[%clk 0:00:49]}  Qxc3+ {[%clk 0:00:16]} 29. Nxc3 {[%clk 0:00:48]}  Nxc4+ {[%clk 0:00:15]} 30. Ke2 {[%clk 0:00:47]}  Rd2+ {[%clk 0:00:12]} 31. Rxd2 {[%clk 0:00:35]}  Rxd2+ {[%clk 0:00:13]} 32. Kf3 {[%clk 0:00:34]}  Ne5+ {[%clk 0:00:11]} 33. Kf4 {[%clk 0:00:35]}  Nd3+ {[%clk 0:00:11]} 34. Ke3 {[%clk 0:00:34]}  Rxg2 {[%clk 0:00:10]} 35. Kxd3 {[%clk 0:00:35]}  Rxh2 {[%clk 0:00:10]} 36. Rb1 {[%clk 0:00:34]}  Ba6+ {[%clk 0:00:08]} 37. Kd4 {[%clk 0:00:33]}  Kf7 {[%clk 0:00:07]} 38. Rb6 {[%clk 0:00:32]}  Bf1 {[%clk 0:00:02]} 39. Ke5 {[%clk 0:00:31]}  Rc2 {[%clk 0:00:01]} 40. Rb7+ {[%clk 0:00:30]}  Kg6 {[%clk 0:00:02]} 41. Nb5 {[%clk 0:00:30]}  Rc6 {[%clk 0:00:02]} 42. Nd6 {[%clk 0:00:28]}  Ra6 {[%clk 0:00:02]} 43. Ne8 {[%clk 0:00:24]}  Ra8 {[%clk 0:00:02]} 44. Nc7 {[%clk 0:00:24]}  Rc8 {[%clk 0:00:01]} 45. Nxe6 {[%clk 0:00:23]}  a4 {[%clk 0:00:02]} 46. Ra7 {[%clk 0:00:23]}  Bb5 {[%clk 0:00:01]} 47. Rxg7+ {[%clk 0:00:21]}  Kh6 {[%clk 0:00:01]} 48. Ra7 {[%clk 0:00:22]}  Re8 {[%clk 0:00:01]} 49. Kd6 {[%clk 0:00:22]}  Bc4 {[%clk 0:00:01]} 50. Nc5 {[%clk 0:00:21]}  Bb3 {[%clk 0:00:02]} 51. e5 {[%clk 0:00:21]}  Rg8 {[%clk 0:00:01]} 52. e6 {[%clk 0:00:20]}  Bxe6 {[%clk 0:00:01]} 53. Nxe6 {[%clk 0:00:20]}  Rxg3 {[%clk 0:00:01]} 54. Rxa4 {[%clk 0:00:19]}  Rd3+ {[%clk 0:00:01]} 55. Ke5 {[%clk 0:00:19]}  Re3+ {[%clk 0:00:02]} 56. Kf6 {[%clk 0:00:19]}  Rf3+ {[%clk 0:00:02]} 57. Ke5 {[%clk 0:00:20]}  Re3+ {[%clk 0:00:02]} 58. Kf5 {[%clk 0:00:20]}  Rf3+ {[%clk 0:00:03]} 59. Ke4 {[%clk 0:00:20]}  Rf1 {[%clk 0:00:03]} 60. Nf4 {[%clk 0:00:20]}  Kg5 {[%clk 0:00:03]} 61. Ra5+ {[%clk 0:00:20]}  Kf6 {[%clk 0:00:03]} 62. Ra6+ {[%clk 0:00:19]}  Kg7 {[%clk 0:00:03]} 63. Kf5 {[%clk 0:00:19]}  h5 {[%clk 0:00:02]} 64. Rg6+ {[%clk 0:00:18]}  Kf7 {[%clk 0:00:02]} 65. Rf6+ {[%clk 0:00:18]}  Ke7 {[%clk 0:00:03]} 66. Ra6 {[%clk 0:00:17]}  h4 {[%clk 0:00:02]} 67. Rh6 {[%clk 0:00:17]}  Rh1 {[%clk 0:00:02]} 68. Ke5 {[%clk 0:00:14]}  Kd7 {[%clk 0:00:02]} 69. Nd5 {[%clk 0:00:14]}  Re1+ {[%clk 0:00:01]} 70. Kd4 {[%clk 0:00:14]}  Rd1+ {[%clk 0:00:01]} 71. Ke4 {[%clk 0:00:14]}  Re1+ {[%clk 0:00:02]} 72. Ne3 {[%clk 0:00:15]}  Rh1 {[%clk 0:00:02]} 73. Kd5 {[%clk 0:00:14]}  h3 {[%clk 0:00:02]} 74. Rh7+ {[%clk 0:00:14]}  Kc8 {[%clk 0:00:03]} 75. Kc6 {[%clk 0:00:13]}  Rc1+ {[%clk 0:00:02]} 76. Kd6 {[%clk 0:00:13]}  Rd1+ {[%clk 0:00:02]} 77. Nd5 {[%clk 0:00:13]}  Rd3 {[%clk 0:00:02]} 78. Kc6 {[%clk 0:00:10]}  Kb8 {[%clk 0:00:01]} 79. Nb6 {[%clk 0:00:09]} 1-0


[Site "https://www.chess.com"]

[Event "Titled Tuesday Blitz May 25 2021"]
[White "Nguyen, Van Huy"]
[Black "Akbas, Umut Ata"]
[WhiteFideId "12401064"]
[BlackFideId "44572646"]
[WhiteElo "2443"]
[BlackElo "1590"]
[Result "0-1"]
[Round "06"]
[TimeControl "180+1"]
[Date "2021.05.25"]
[WhiteClock "0:01:39"]
[BlackClock "0:01:44"]

1. d4 {[%clk 0:03:00]}  Nf6 {[%clk 0:02:57]} 2. c4 {[%clk 0:03:00]}  e6 {[%clk 0:02:58]} 3. Nf3 {[%clk 0:03:00]}  d5 {[%clk 0:02:58]} 4. g3 {[%clk 0:03:00]}  Be7 {[%clk 0:02:57]} 5. Bg2 {[%clk 0:03:00]}  O-O {[%clk 0:02:57]} 6. O-O {[%clk 0:03:01]}  dxc4 {[%clk 0:02:58]} 7. Qc2 {[%clk 0:03:01]}  a6 {[%clk 0:02:53]} 8. a4 {[%clk 0:03:01]}  Bd7 {[%clk 0:02:53]} 9. Rd1 {[%clk 0:03:00]}  Bc6 {[%clk 0:02:49]} 10. Nc3 {[%clk 0:03:01]}  Bb4 {[%clk 0:02:46]} 11. Bg5 {[%clk 0:02:56]}  Nbd7 {[%clk 0:02:40]} 12. d5 {[%clk 0:02:44]}  exd5 {[%clk 0:02:35]} 13. Nxd5 {[%clk 0:02:44]}  Bxd5 {[%clk 0:02:20]} 14. Rxd5 {[%clk 0:02:44]}  Bd6 {[%clk 0:02:21]} 15. Qxc4 {[%clk 0:02:39]}  Nb6 {[%clk 0:02:20]} 16. Bxf6 {[%clk 0:02:25]}  Qxf6 {[%clk 0:02:21]} 17. Qd3 {[%clk 0:02:23]}  Nxd5 {[%clk 0:02:20]} 18. Qxd5 {[%clk 0:02:23]}  Qxb2 {[%clk 0:02:20]} 19. Rd1 {[%clk 0:02:23]}  Rad8 {[%clk 0:02:15]} 20. Nd4 {[%clk 0:02:18]}  Bxg3 {[%clk 0:02:04]} 21. Qc4 {[%clk 0:02:10]}  Be5 {[%clk 0:02:00]} 22. e3 {[%clk 0:02:10]}  Bxd4 {[%clk 0:02:00]} 23. exd4 {[%clk 0:02:10]}  c6 {[%clk 0:02:00]} 24. Be4 {[%clk 0:02:08]}  g6 {[%clk 0:01:58]} 25. d5 {[%clk 0:02:05]}  Qe5 {[%clk 0:01:55]} 26. Rd3 {[%clk 0:02:01]}  Rfe8 {[%clk 0:01:51]} 27. dxc6 {[%clk 0:01:51]}  bxc6 {[%clk 0:01:48]} 28. Re3 {[%clk 0:01:42]}  Rd4 {[%clk 0:01:43]} 29. Qxc6 {[%clk 0:01:39]}  Rxe4 {[%clk 0:01:44]} 0-1


[Site "https://www.chess.com"]

[Event "Titled Tuesday Blitz May 25 2021"]
[White "Omk124"]
[Black "Ibrahimli, Murad"]
[BlackFideId "13410229"]
[WhiteElo "2524"]
[BlackElo "2109"]
[Result "0-1"]
[Round "06"]
[TimeControl "180+1"]
[Date "2021.05.25"]
[WhiteClock "0:00:23"]
[BlackClock "0:00:20"]

1. e4 {[%clk 0:02:59]}  c5 {[%clk 0:02:58]} 2. Nf3 {[%clk 0:02:59]}  e6 {[%clk 0:02:57]} 3. d4 {[%clk 0:02:59]}  cxd4 {[%clk 0:02:58]} 4. Nxd4 {[%clk 0:03:00]}  a6 {[%clk 0:02:56]} 5. c4 {[%clk 0:03:00]}  Qc7 {[%clk 0:02:55]} 6. Nc3 {[%clk 0:02:59]}  Nf6 {[%clk 0:02:55]} 7. Be2 {[%clk 0:02:59]}  b6 {[%clk 0:02:55]} 8. O-O {[%clk 0:02:58]}  Bb7 {[%clk 0:02:55]} 9. f3 {[%clk 0:02:58]}  d6 {[%clk 0:02:54]} 10. Be3 {[%clk 0:02:58]}  Nbd7 {[%clk 0:02:55]} 11. Rc1 {[%clk 0:02:59]}  Be7 {[%clk 0:02:55]} 12. Qd2 {[%clk 0:02:59]}  O-O {[%clk 0:02:55]} 13. b4 {[%clk 0:02:59]}  Rac8 {[%clk 0:02:51]} 14. Rfd1 {[%clk 0:02:59]}  Qb8 {[%clk 0:02:51]} 15. Bf1 {[%clk 0:02:58]}  Bd8 {[%clk 0:02:51]} 16. Qf2 {[%clk 0:02:58]}  Bc7 {[%clk 0:02:50]} 17. Kh1 {[%clk 0:02:59]}  Rfe8 {[%clk 0:02:49]} 18. a3 {[%clk 0:02:56]}  d5 {[%clk 0:02:43]} 19. cxd5 {[%clk 0:02:55]}  exd5 {[%clk 0:02:43]} 20. exd5 {[%clk 0:02:56]}  Bxh2 {[%clk 0:02:41]} 21. Nf5 {[%clk 0:02:52]}  Bf4 {[%clk 0:02:22]} 22. d6 {[%clk 0:02:43]}  Bxe3 {[%clk 0:02:07]} 23. Nxe3 {[%clk 0:02:44]}  g6 {[%clk 0:02:04]} 24. Nc4 {[%clk 0:02:40]}  b5 {[%clk 0:02:01]} 25. Nb6 {[%clk 0:02:40]}  Nxb6 {[%clk 0:01:55]} 26. Qxb6 {[%clk 0:02:40]}  Nd7 {[%clk 0:01:44]} 27. Qd4 {[%clk 0:02:40]}  Re5 {[%clk 0:01:44]} 28. Kg1 {[%clk 0:02:31]}  Rce8 {[%clk 0:01:34]} 29. f4 {[%clk 0:02:27]}  R5e6 {[%clk 0:01:12]} 30. Kf2 {[%clk 0:02:18]}  Nf6 {[%clk 0:01:11]} 31. Kg1 {[%clk 0:02:12]}  Rd8 {[%clk 0:01:10]} 32. f5 {[%clk 0:01:21]}  Rexd6 {[%clk 0:01:10]} 33. Qh4 {[%clk 0:01:14]}  Qa7+ {[%clk 0:01:06]} 34. Kh1 {[%clk 0:01:12]}  Qe3 {[%clk 0:01:04]} 35. fxg6 {[%clk 0:01:06]}  hxg6 {[%clk 0:01:01]} 36. Re1 {[%clk 0:00:59]}  Qd4 {[%clk 0:00:58]} 37. Qxd4 {[%clk 0:00:58]}  Rxd4 {[%clk 0:00:59]} 38. Kg1 {[%clk 0:00:58]}  R8d7 {[%clk 0:00:56]} 39. Rc2 {[%clk 0:00:56]}  Kg7 {[%clk 0:00:54]} 40. Rf2 {[%clk 0:00:55]}  Ng4 {[%clk 0:00:54]} 41. Rfe2 {[%clk 0:00:53]}  Rc7 {[%clk 0:00:49]} 42. Nb1 {[%clk 0:00:47]}  Bd5 {[%clk 0:00:44]} 43. Re7 {[%clk 0:00:43]}  Rxe7 {[%clk 0:00:43]} 44. Rxe7 {[%clk 0:00:43]}  Be6 {[%clk 0:00:26]} 45. Ra7 {[%clk 0:00:39]}  Rd1 {[%clk 0:00:24]} 46. Nc3 {[%clk 0:00:40]}  Rc1 {[%clk 0:00:25]} 47. Ne4 {[%clk 0:00:25]}  Ne3 {[%clk 0:00:21]} 48. Nd2 {[%clk 0:00:21]}  Nxf1 {[%clk 0:00:21]} 49. Nxf1 {[%clk 0:00:21]}  Bc4 {[%clk 0:00:22]} 50. Rxa6 {[%clk 0:00:22]}  Rxf1+ {[%clk 0:00:21]} 51. Kh2 {[%clk 0:00:23]}  Rf2 {[%clk 0:00:21]} 52. Ra5 {[%clk 0:00:24]}  Ra2 {[%clk 0:00:19]} 53. Kg1 {[%clk 0:00:23]}  g5 {[%clk 0:00:19]} 54. g3 {[%clk 0:00:24]}  Kg6 {[%clk 0:00:20]} 55. Ra6+ {[%clk 0:00:24]}  Kh5 {[%clk 0:00:20]} 56. Ra7 {[%clk 0:00:23]}  Kg4 {[%clk 0:00:20]} 57. Rxf7 {[%clk 0:00:23]}  Bxf7 {[%clk 0:00:20]} 0-1


[Site "https://www.chess.com"]

[Event "Titled Tuesday Blitz May 25 2021"]
[White "Pelopidass"]
[Black "Shkapenko, Pavel"]
[BlackFideId "4151933"]
[WhiteElo "2536"]
[BlackElo "2386"]
[Result "1/2-1/2"]
[Round "06"]
[TimeControl "180+1"]
[Date "2021.05.25"]
[WhiteClock "0:00:30"]
[BlackClock "0:00:21"]

1. d4 {[%clk 0:03:00]}  Nf6 {[%clk 0:02:55]} 2. Nf3 {[%clk 0:03:01]}  e6 {[%clk 0:02:55]} 3. c4 {[%clk 0:02:59]}  Bb4+ {[%clk 0:02:54]} 4. Nbd2 {[%clk 0:02:57]}  d5 {[%clk 0:02:54]} 5. e3 {[%clk 0:02:57]}  O-O {[%clk 0:02:53]} 6. a3 {[%clk 0:02:56]}  Be7 {[%clk 0:02:52]} 7. Bd3 {[%clk 0:02:55]}  a5 {[%clk 0:02:51]} 8. b3 {[%clk 0:02:55]}  b6 {[%clk 0:02:51]} 9. Bb2 {[%clk 0:02:55]}  Bb7 {[%clk 0:02:51]} 10. O-O {[%clk 0:02:52]}  Nbd7 {[%clk 0:02:52]} 11. Qe2 {[%clk 0:02:46]}  Ne4 {[%clk 0:02:51]} 12. Rfd1 {[%clk 0:02:43]}  Nxd2 {[%clk 0:02:47]} 13. Rxd2 {[%clk 0:02:39]}  Bd6 {[%clk 0:02:44]} 14. e4 {[%clk 0:02:37]}  dxe4 {[%clk 0:02:42]} 15. Bxe4 {[%clk 0:02:37]}  Bxe4 {[%clk 0:02:42]} 16. Qxe4 {[%clk 0:02:38]}  Nf6 {[%clk 0:02:42]} 17. Qc6 {[%clk 0:02:39]}  Bf4 {[%clk 0:02:40]} 18. Rd3 {[%clk 0:02:34]}  Qd6 {[%clk 0:02:40]} 19. Qxd6 {[%clk 0:02:33]}  cxd6 {[%clk 0:02:40]} 20. g3 {[%clk 0:02:32]}  Bh6 {[%clk 0:02:40]} 21. d5 {[%clk 0:02:32]}  e5 {[%clk 0:02:39]} 22. Rdd1 {[%clk 0:02:27]}  Nd7 {[%clk 0:02:39]} 23. a4 {[%clk 0:02:21]}  Nc5 {[%clk 0:02:30]} 24. Ba3 {[%clk 0:02:21]}  f5 {[%clk 0:02:18]} 25. Rab1 {[%clk 0:02:14]}  Rfc8 {[%clk 0:02:15]} 26. Ne1 {[%clk 0:02:07]}  e4 {[%clk 0:02:11]} 27. Nc2 {[%clk 0:02:06]}  g6 {[%clk 0:02:05]} 28. Bxc5 {[%clk 0:02:00]}  bxc5 {[%clk 0:02:03]} 29. Na3 {[%clk 0:02:00]}  e3 {[%clk 0:01:58]} 30. Re1 {[%clk 0:01:38]}  Re8 {[%clk 0:01:53]} 31. Nb5 {[%clk 0:01:37]}  Rad8 {[%clk 0:01:53]} 32. Nc7 {[%clk 0:01:35]}  Re5 {[%clk 0:01:22]} 33. f4 {[%clk 0:01:29]}  Re4 {[%clk 0:01:22]} 34. Re2 {[%clk 0:01:27]}  Bg7 {[%clk 0:01:19]} 35. Kg2 {[%clk 0:01:23]}  Bd4 {[%clk 0:01:17]} 36. Rd1 {[%clk 0:01:19]}  Rd7 {[%clk 0:01:17]} 37. Ne6 {[%clk 0:01:14]}  h6 {[%clk 0:01:15]} 38. h4 {[%clk 0:01:13]}  Rb7 {[%clk 0:01:14]} 39. Rd3 {[%clk 0:01:13]}  Rb6 {[%clk 0:01:09]} 40. Kf3 {[%clk 0:01:13]}  Kf7 {[%clk 0:01:09]} 41. Re1 {[%clk 0:01:11]}  Kf6 {[%clk 0:01:08]} 42. Ke2 {[%clk 0:01:10]}  h5 {[%clk 0:00:59]} 43. Red1 {[%clk 0:01:01]}  Rxe6 {[%clk 0:00:55]} 44. dxe6 {[%clk 0:00:59]}  Kxe6 {[%clk 0:00:56]} 45. Rc1 {[%clk 0:00:38]}  d5 {[%clk 0:00:55]} 46. cxd5+ {[%clk 0:00:35]}  Kxd5 {[%clk 0:00:55]} 47. Rc4 {[%clk 0:00:35]}  Rb8 {[%clk 0:00:37]} 48. Kd1 {[%clk 0:00:35]}  Ke4 {[%clk 0:00:31]} 49. Ke2 {[%clk 0:00:34]}  Kd5 {[%clk 0:00:31]} 50. Kd1 {[%clk 0:00:31]}  Ke4 {[%clk 0:00:20]} 51. Ke2 {[%clk 0:00:30]}  Kd5 {[%clk 0:00:21]} 1/2-1/2


[Site "https://www.chess.com"]

[Event "Titled Tuesday Blitz May 25 2021"]
[White "Perez Gormaz, Matias"]
[Black "kleopl"]
[WhiteFideId "3406342"]
[WhiteElo "2414"]
[BlackElo "2491"]
[Result "0-1"]
[Round "06"]
[TimeControl "180+1"]
[Date "2021.05.25"]
[WhiteClock "0:00:02"]
[BlackClock "0:00:09"]

1. e4 {[%clk 0:03:00]}  c6 {[%clk 0:02:59]} 2. Nf3 {[%clk 0:03:00]}  d5 {[%clk 0:02:59]} 3. Nc3 {[%clk 0:03:01]}  a6 {[%clk 0:02:58]} 4. h3 {[%clk 0:02:54]}  Nf6 {[%clk 0:02:51]} 5. e5 {[%clk 0:02:51]}  Ne4 {[%clk 0:02:51]} 6. Ne2 {[%clk 0:02:34]}  Qb6 {[%clk 0:02:39]} 7. d4 {[%clk 0:02:31]}  c5 {[%clk 0:02:38]} 8. c3 {[%clk 0:02:21]}  cxd4 {[%clk 0:02:28]} 9. Nexd4 {[%clk 0:02:08]}  Nc6 {[%clk 0:02:27]} 10. Bd3 {[%clk 0:02:06]}  Nc5 {[%clk 0:02:19]} 11. Bc2 {[%clk 0:02:03]}  g6 {[%clk 0:02:09]} 12. O-O {[%clk 0:02:00]}  Bg7 {[%clk 0:02:08]} 13. Re1 {[%clk 0:02:00]}  O-O {[%clk 0:02:07]} 14. Rb1 {[%clk 0:01:40]}  a5 {[%clk 0:01:58]} 15. Bg5 {[%clk 0:01:33]}  Re8 {[%clk 0:01:52]} 16. Qd2 {[%clk 0:01:31]}  Bd7 {[%clk 0:01:35]} 17. Bh6 {[%clk 0:01:16]}  Bh8 {[%clk 0:01:35]} 18. Qf4 {[%clk 0:01:01]}  Ne6 {[%clk 0:01:30]} 19. Nxe6 {[%clk 0:00:59]}  Bxe6 {[%clk 0:01:31]} 20. Ng5 {[%clk 0:00:57]}  Qc7 {[%clk 0:01:14]} 21. Nxe6 {[%clk 0:00:36]}  fxe6 {[%clk 0:01:14]} 22. Qg4 {[%clk 0:00:36]}  Kf7 {[%clk 0:01:07]} 23. f4 {[%clk 0:00:17]}  d4 {[%clk 0:01:02]} 24. Bb3 {[%clk 0:00:16]}  Nd8 {[%clk 0:00:57]} 25. cxd4 {[%clk 0:00:16]}  a4 {[%clk 0:00:56]} 26. Rbc1 {[%clk 0:00:06]}  Qb6 {[%clk 0:00:55]} 27. Bc4 {[%clk 0:00:07]}  Qxd4+ {[%clk 0:00:54]} 28. Kh1 {[%clk 0:00:07]}  Rc8 {[%clk 0:00:47]} 29. b3 {[%clk 0:00:07]}  axb3 {[%clk 0:00:42]} 30. Bxb3 {[%clk 0:00:08]}  Rxc1 {[%clk 0:00:39]} 31. Rxc1 {[%clk 0:00:09]}  Qe3 {[%clk 0:00:32]} 32. Rd1 {[%clk 0:00:08]}  Qb6 {[%clk 0:00:29]} 33. f5 {[%clk 0:00:03]}  Bg7 {[%clk 0:00:27]} 34. fxe6+ {[%clk 0:00:01]}  Kg8 {[%clk 0:00:25]} 35. Bg5 {[%clk 0:00:01]}  Bxe5 {[%clk 0:00:21]} 36. Qe4 {[%clk 0:00:01]}  Bb8 {[%clk 0:00:15]} 37. Be3 {[%clk 0:00:02]}  Qc7 {[%clk 0:00:14]} 38. Kg1 {[%clk 0:00:02]}  Rf8 {[%clk 0:00:09]} 0-1


[Site "https://www.chess.com"]